bitfinex-derivatives/quotes_SOLF0:USTF0_20260117
["timestamp","ask_amount","ask_price","bid_price","bid_amount"]
[1768609865558,6.2286,144.56,144.52,3.13622341]
[1768609874764,6.229,144.55,144.52,2.341e-05]
[1768609880764,6.229,144.55,144.51,8.60754211]
[1768609885868,6.229,144.55,144.51,11.69305414]
[1768609887170,6.77868175,144.57,144.51,11.69305414]
[1768609887464,6.77868175,144.57,144.52,3.08551203]
[1768609887671,6.2283,144.57,144.52,11.69305414]
[1768609888870,6.2283,144.57,144.53,3.08551203]
[1768609893974,6.2283,144.57,144.52,8.60754211]
[1768609896970,6.2283,144.57,144.52,11.76600433]
[1768609901479,6.2283,144.57,144.52,3.15846222]
[1768609902674,6.2297,144.54,144.51,4.211e-05]
[1768609902876,6.2297,144.54,144.49,16.04798748]
[1768609903068,96.8693,144.59,144.5,3.15846222]
[1768609903069,3.01848555,144.59,144.5,3.15846222]
[1768609903273,4.7350709,144.59,144.5,3.15846222]
[1768609903774,3.01848555,144.59,144.52,3.15846222]
[1768609904175,9.24578555,144.59,144.52,3.15846222]
[1768609904378,4.7350709,144.59,144.52,3.15846222]
[1768609905483,9.24628555,144.58,144.52,3.15846222]
[1768609915286,6.2278,144.58,144.52,3.15846222]
[1768609917998,3.11732294,144.59,144.52,3.15846222]
[1768609918596,3.11732294,144.59,144.53,3.22553385]
[1768609922797,3.11732294,144.58,144.51,12.88952526]
[1768609923003,3.11732294,144.58,144.5,22.34585911]
[1768609923605,3.11732294,144.58,144.51,3.22553385]
[1768609923807,9.34552294,144.57,144.51,3.22553385]
[1768609926009,11.06210829,144.57,144.51,3.22553385]
[1768609930507,3.11732294,144.56,144.5,19.12032526]
[1768609930712,9.34592294,144.56,144.49,277.71505911]
[1768609930905,11.06250829,144.56,144.49,277.71505911]
[1768609931107,3.11732294,144.55,144.49,277.71505911]
[1768609931805,3.11732294,144.55,144.49,283.94655911]
[1768609934910,3.11732294,144.55,144.49,277.71505911]
[1768609935211,3.11732294,144.55,144.49,264.82553385]
[1768609938909,9.34642294,144.55,144.49,264.82553385]
[1768609942416,96.8725,144.59,144.49,261.6]
[1768609942417,4.75478876,144.54,144.49,261.6]
[1768609943410,3.03820341,144.53,144.49,250.7142]
[1768609943610,3.03820341,144.53,144.46,3.26592379]
[1768609943611,4.75478876,144.53,144.46,3.26592379]
[1768609943812,3.03820341,144.52,144.46,264.88592379]
[1768609944919,6.2308,144.51,144.46,264.88592379]
[1768609945315,6.2304,144.52,144.47,3.26592379]
[1768609945622,4.75478876,144.54,144.47,3.26592379]
[1768609945920,3.03820341,144.54,144.47,3.26592379]
[1768609946120,4.75478876,144.54,144.47,3.26592379]
[1768609946719,3.03820341,144.54,144.47,3.26592379]
[1768609946919,4.75478876,144.54,144.47,3.26592379]
[1768609947820,6.2299,144.53,144.47,3.26592379]
[1768609949817,3.03820341,144.54,144.47,3.26592379]
[1768609950018,5.00481556,144.56,144.48,3.10116854]
[1768609951221,3.28823021,144.56,144.48,3.10116854]
[1768609951424,5.00481556,144.56,144.48,3.10116854]
[1768609951925,11.23341556,144.56,144.49,3.10116854]
[1768609952326,9.51683021,144.56,144.49,3.10116854]
[1768609955326,3.28823021,144.56,144.49,3.10116854]
[1768609957128,3.28823021,144.56,144.49,9.33256854]
[1768609957428,3.28823021,144.56,144.5,3.10116854]
[1768609959933,3.28823021,144.56,144.51,3.10116854]
[1768609960834,3.28823021,144.56,144.51,9.33176854]
[1768609965640,5.00536754,144.56,144.51,3.10116854]
[1768609966338,5.00536754,144.56,144.49,9.33236854]
[1768609966533,5.00536754,144.56,144.5,3.10116854]
[1768609968443,5.00536754,144.56,144.5,9.33226854]
[1768609978848,3.28823021,144.56,144.5,9.33226854]
[1768609981146,3.28823021,144.56,144.51,3.00975946]
[1768609982946,0.04526665,144.55,144.51,3.00975946]
[1768609983250,0.04526665,144.55,144.52,0.0476639]
[1768609996769,3.18070893,144.55,144.52,0.0476639]
[1768610014877,3.18070893,144.55,144.47,22.30761784]
[1768610015072,3.18070893,144.55,144.48,3.18589258]
[1768610015471,6.229,144.56,144.5,3.18589258]
[1768610015981,9.39855247,144.56,144.5,3.18589258]
[1768610016279,0.04849415,144.54,144.5,3.18589258]
[1768610031590,0.04849415,144.54,144.48,16.06301528]
[1768610031790,0.04849415,144.54,144.49,3.17349002]
[1768610041392,0.04849415,144.54,144.5,3.17349002]
[1768610050308,3.15605352,144.54,144.48,16.06301528]
[1768610050501,3.15605352,144.54,144.49,3.17349002]
[1768610051908,6.2298,144.53,144.49,3.17349002]
[1768610055413,9.33735937,144.53,144.47,16.06301528]
[1768610056317,9.33795937,144.52,144.47,3.17349002]
[1768610057211,0.05184325,144.51,144.47,3.17349002]
[1768610067124,9.34182364,144.51,144.45,3.17809779]
[1768610071529,3.17660066,144.5,144.45,3.17809779]
[1768610073830,9.40780066,144.5,144.45,3.17809779]
[1768610080333,6.2316,144.49,144.45,3.17809779]
[1768610081532,6.2322,144.48,144.43,264.69188193]
[1768610081737,9.40880066,144.48,144.43,264.69188193]
[1768610082137,9.40880066,144.48,144.43,3.01188193]
[1768610082534,0.04635036,144.47,144.43,3.01188193]
[1768610085845,6.27885036,144.47,144.43,3.01188193]
[1768610088538,6.27885036,144.47,144.35,37.97287745]
[1768610088539,3.17660066,144.46,144.36,1.71851439]
[1768610088735,3.17660066,144.46,144.37,3.01188193]
[1768610088934,9.40960066,144.46,144.39,3.01188193]
[1768610089543,0.04790707,144.44,144.39,3.01188193]
[1768610090541,3.22450773,144.44,144.34,3.01188193]
[1768610090746,3.22450773,144.44,144.36,1.71851439]
[1768610090933,3.22450773,144.44,144.37,3.01188193]
[1768610091137,3.17660066,144.44,144.37,3.01188193]
[1768610091337,6.2336,144.45,144.37,3.01188193]
[1768610091544,0.05263996,144.42,144.37,3.01188193]
[1768610091841,9.36238314,144.42,144.33,1.20529916]
[1768610092046,3.07504318,144.4,144.31,3.00358603]
[1768610092739,0.04616785,144.37,144.31,3.00358603]
[1768610093247,3.12121103,144.37,144.3,3.00358603]
[1768610093441,3.12121103,144.37,144.31,3.00358603]
[1768610094445,0.04616785,144.37,144.32,3.00358603]
[1768610094744,0.04616785,144.37,144.33,3.00358603]
[1768610100551,0.04616785,144.37,144.29,19.1463094]
[1768610100951,3.12121103,144.37,144.29,19.1463094]
[1768610101150,3.12121103,144.37,144.3,3.00358603]
[1768610103946,0.04616785,144.37,144.3,3.00358603]
[1768610107055,3.12121103,144.37,144.3,3.00358603]
[1768610110559,0.04616785,144.37,144.3,3.00358603]
[1768610122370,1.76468224,144.37,144.3,3.00358603]
[1768610122672,0.04616785,144.37,144.3,3.00358603]
[1768610123771,0.04616785,144.37,144.33,6.2384]
[1768610129779,0.04616785,144.37,144.33,9.25558545]
[1768610131081,0.04616785,144.37,144.34,2.97695021]
[1768610139186,1.72115232,144.4,144.35,2.97695021]
[1768610140494,0.0439213,144.39,144.35,2.97695021]
[1768610151093,1.72115232,144.38,144.34,6.28434331]
[1768610155506,3.05677607,144.39,144.34,6.28434331]
[1768610155688,4.77792839,144.39,144.34,9.44067457]
[1768610159802,4.77792839,144.39,144.35,6.2376]
[1768610161090,3.05677607,144.39,144.35,6.2376]
[1768610167899,3.05677607,144.39,144.36,6.2371]
[1768610169013,1.72115232,144.4,144.36,9.39343126]
[1768610178314,0.63326638,144.42,144.36,9.39343126]
[1768610178523,128.69121875,144.43,144.37,3.15633126]
[1768610178917,126.97006643,144.43,144.39,6.2358]
[1768610179318,126.97006643,144.43,144.39,6.28096125]
[1768610180914,0.63326638,144.46,144.41,3.15633126]
[1768610181819,0.63326638,144.46,144.42,0.04879448]
[1768610183121,2.3544187,144.46,144.42,0.04879448]
[1768610190818,2.3544187,144.46,144.42,6.28329448]
[1768610194931,1.72115232,144.46,144.42,9.3369853]
[1768610195432,1.71942481,144.47,144.42,9.3369853]
[1768610197730,6.2315,144.5,144.43,3.05369082]
[1768610197731,1.71942481,144.49,144.43,3.05369082]
[1768610198517,4.96699311,144.5,144.45,3.05369082]
[1768610198720,1.71942481,144.5,144.45,3.09846953]
[1768610199826,1.71942481,144.5,144.45,9.33166953]
[1768610200728,1.71942481,144.5,144.46,3.05369082]
[1768610201033,4.96699311,144.52,144.46,9.28639082]
[1768610201234,3.2475683,144.52,144.46,3.05369082]
[1768610201530,1.71942481,144.53,144.48,3.05369082]
[1768610202432,1.71942481,144.53,144.49,0.04590281]
[1768610205333,4.96699311,144.54,144.49,0.04590281]
[1768610206333,3.2475683,144.53,144.49,0.04590281]
[1768610211241,9.4774683,144.53,144.49,0.04590281]
[1768610212838,3.08554276,144.49,144.42,9.43603762]
[1768610213038,1.71942481,144.46,144.35,194.0528]
[1768610213244,96.9307,144.5,144.36,3.20183762]
[1768610213245,1.71942481,144.44,144.36,3.20183762]
[1768610213844,3.08554276,144.45,144.39,3.20183762]
[1768610214032,1.71942481,144.46,144.39,3.20183762]
[1768610214838,1.71942481,144.46,144.4,9.43713762]
[1768610218046,1.71942481,144.46,144.4,3.20183762]
[1768610219153,4.80496757,144.46,144.4,3.20183762]
[1768610221853,3.08554276,144.45,144.4,3.20183762]
[1768610222060,3.08554276,144.45,144.38,3.20183762]
[1768610237664,6.2324,144.48,144.39,3.20183762]
[1768610237864,7.95182481,144.48,144.39,3.20183762]
[1768610238462,3.08554276,144.49,144.4,1.71942481]
[1768610238665,3.08554276,144.49,144.41,3.20183762]
[1768610238873,4.80496757,144.51,144.41,3.20183762]
[1768610239370,4.80496757,144.51,144.43,3.20183762]
[1768610240569,3.08554276,144.51,144.43,3.20183762]
[1768610241771,4.79462134,144.53,144.43,3.20183762]
[1768610242069,4.79462134,144.53,144.45,2.98101331]
[1768610242858,4.79462134,144.53,144.46,2.98101331]
[1768610248768,3.07519653,144.52,144.46,2.98101331]
[1768610250373,1.71942481,144.51,144.46,2.98101331]
[1768610255278,4.79335105,144.52,144.46,2.98101331]
[1768610259081,3.23441,144.55,144.48,9.51816413]
[1768610259284,1.71815452,144.53,144.48,9.51816413]
[1768610259684,1.71815452,144.54,144.49,3.28636413]
[1768610260283,3.23441,144.55,144.49,3.28636413]
[1768610260482,1.71815452,144.54,144.49,3.28636413]
[1768610264886,3.23441,144.55,144.49,9.51786413]
[1768610265090,1.71815452,144.54,144.49,9.51786413]
[1768610271381,4.70178068,144.54,144.49,3.28636413]
[1768610271588,1.71815452,144.52,144.47,9.50922849]
[1768610271888,1.71815452,144.5,144.47,3.27712849]
[1768610273400,1.71815452,144.48,144.44,261.7]
[1768610273584,1.71815452,144.48,144.43,3.27712849]
[1768610273788,1.71815452,144.46,144.42,194.23856168]
[1768610274194,1.71815452,144.46,144.44,0.04583619]
[1768610274690,1.71815452,144.46,144.42,194.23856168]
[1768610274898,4.70178068,144.46,144.42,194.23856168]
[1768610275695,4.70178068,144.46,144.41,3.27712849]
[1768610275897,2.98362616,144.46,144.41,3.27712849]
[1768610276196,4.70178068,144.46,144.41,3.27712849]
[1768610277797,2.98362616,144.46,144.41,3.27712849]
[1768610280499,0.04823765,144.47,144.41,3.27712849]
[1768610283198,0.04823765,144.47,144.42,3.27712849]
[1768610283796,0.04823765,144.47,144.42,9.51152849]
[1768610283999,2.98362616,144.5,144.43,3.27712849]
[1768610284802,2.98362616,144.5,144.44,3.27712849]
[1768610285303,1.71815452,144.52,144.44,3.27712849]
[1768610285602,4.70178068,144.52,144.44,3.27712849]
[1768610285804,0.04551155,144.49,144.44,3.27712849]
[1768610286299,0.04551155,144.49,144.47,0.04947797]
[1768610288302,0.04551155,144.49,144.45,3.27712849]
[1768610299208,0.04551155,144.49,144.4,111.59897978]
[1768610299209,4.70178068,144.48,144.41,3.27712849]
[1768610299411,1.71815452,144.46,144.41,3.27712849]
[1768610300208,0.04403732,144.45,144.41,3.27712849]
[1768610300711,1.71815452,144.44,144.39,3.27712849]
[1768610301610,0.05322544,144.43,144.39,3.27712849]
[1768610302013,1.71815452,144.48,144.39,3.27712849]
[1768610302208,4.81728101,144.48,144.39,3.27712849]
[1768610302815,3.09912649,144.48,144.39,3.27712849]
[1768610303114,4.81728101,144.48,144.39,3.27712849]
[1768610303817,11.04938101,144.48,144.41,3.19274469]
[1768610304015,9.33122649,144.48,144.41,3.19274469]
[1768610308719,1.71815452,144.49,144.42,3.19274469]
[1768610309811,1.71815452,144.49,144.43,6.2341]
[1768610310018,1.71815452,144.49,144.43,9.42684469]
[1768610310513,1.71815452,144.49,144.44,3.13301442]
[1768610312919,3.09912649,144.5,144.44,3.13301442]
[1768610313121,4.81728101,144.5,144.44,3.13301442]
[1768610317322,4.80705499,144.48,144.41,9.36771442]
[1768610317524,4.80705499,144.48,144.42,3.13301442]
[1768610325130,4.80705499,144.48,144.42,9.36751442]
[1768610330835,1.71912493,144.48,144.43,9.36711442]
[1768610331040,4.80705499,144.5,144.44,3.13301442]
[1768610332844,11.03825499,144.5,144.44,3.13301442]
[1768610338646,11.03825499,144.5,144.4,14.60865019]
[1768610338647,3.20933339,144.48,144.42,2.9888378]
[1768610339850,3.20933339,144.48,144.42,9.2234378]
[1768610340046,3.20933339,144.48,144.43,2.9888378]
[1768610347056,3.20933339,144.47,144.41,2.9888378]
[1768610348865,9.44183339,144.47,144.41,2.9888378]
[1768610359869,9.44223339,144.46,144.39,15.87836306]
[1768610360067,3.20933339,144.45,144.39,15.87836306]
[1768610360864,3.20933339,144.45,144.39,22.11416306]
[1768610364878,9.44273339,144.45,144.39,15.87836306]
[1768610371079,9.44273339,144.45,144.39,2.9888378]
[1768610380773,3.08868808,144.47,144.4,3.24971593]
[1768610380982,3.08868808,144.46,144.4,3.24971593]
[1768610381880,6.2334,144.45,144.4,3.24971593]
[1768610384186,9.32208808,144.45,144.4,3.24971593]
[1768610392683,9.32208808,144.45,144.38,22.21638294]
[1768610392684,3.11635771,144.44,144.38,22.21638294]
[1768610392890,9.35015771,144.44,144.38,15.98008294]
[1768610393588,3.11635771,144.43,144.38,3.09055768]
[1768610402298,3.11635771,144.43,144.38,15.98008294]
[1768610402493,3.11635771,144.42,144.37,12.88952526]
[1768610402698,3.11635771,144.42,144.36,3.09055768]
[1768610402699,4.83618891,144.41,144.36,15.98008294]
[1768610402997,4.83618891,144.41,144.36,3.09055768]
[1768610403193,3.11635771,144.41,144.36,3.09055768]
[1768610405100,96.9595,144.46,144.36,3.09055768]
[1768610405101,3.11635771,144.44,144.38,3.09055768]
[1768610406899,3.11635771,144.44,144.38,9.32675768]
[1768610409600,3.11635771,144.46,144.39,3.09055768]
[1768610410897,3.11635771,144.45,144.39,3.09055768]
[1768610413405,3.11635771,144.45,144.38,19.12572526]
[1768610413592,3.11635771,144.43,144.37,15.98008294]
[1768610414505,3.11635771,144.43,144.37,22.21678294]
[1768610418105,3.11635771,144.43,144.38,3.09055768]
[1768610419604,3.11635771,144.43,144.37,19.12622526]
[1768610420004,3.11635771,144.43,144.37,22.21678294]
[1768610421113,3.11635771,144.43,144.37,9.32725768]
[1768610428316,3.11635771,144.43,144.38,3.09775782]
[1768610430316,6.2338,144.44,144.38,3.09775782]
[1768610432916,3.13013167,144.45,144.38,3.09775782]
[1768610433824,9.36353167,144.45,144.38,3.09775782]
[1768610434626,3.13013167,144.44,144.38,3.09775782]
[1768610436521,3.13013167,144.43,144.35,19.12682526]
[1768610436725,3.13013167,144.43,144.35,271.19777415]
[1768610436927,3.13013167,144.43,144.35,264.96047415]
[1768610437823,3.13013167,144.43,144.36,6.237]
[1768610439528,3.13013167,144.42,144.36,6.237]
[1768610441630,3.13013167,144.42,144.37,6.2367]
[1768610443128,3.13013167,144.42,144.36,3.10047415]
[1768610443940,3.13013167,144.42,144.36,9.33757415]
[1768610444327,3.13013167,144.42,144.36,3.10047415]
[1768610445132,9.36473167,144.42,144.36,3.10047415]
[1768610447126,3.13013167,144.41,144.36,3.10047415]
[1768610447332,9.36533167,144.41,144.36,3.10047415]
[1768610448041,3.13013167,144.4,144.35,3.10047415]
[1768610452339,9.36563167,144.4,144.35,3.10047415]
[1768610462553,3.13013167,144.4,144.35,3.10047415]
[1768610475565,3.2035305,144.39,144.33,16.08644219]
[1768610475763,3.2035305,144.39,144.33,3.19691693]
[1768610476469,3.2035305,144.38,144.33,3.19691693]
[1768610481175,3.2035305,144.4,144.33,3.19691693]
[1768610482378,3.2035305,144.4,144.33,16.08644219]
[1768610487675,3.2035305,144.4,144.33,3.19691693]
[1768610491979,3.2035305,144.4,144.33,16.08644219]
[1768610492283,9.4390305,144.4,144.33,16.08644219]
[1768610492682,1.72043544,144.42,144.33,16.08644219]
[1768610492683,9.30225446,144.42,144.34,3.1952455]
[1768610492983,9.30225446,144.42,144.35,3.1952455]
[1768610496883,3.06735446,144.42,144.36,3.1952455]
[1768610506294,3.06735446,144.42,144.36,9.4323455]
[1768610516907,3.06735446,144.42,144.37,3.00390783]
[1768610520110,5.00971257,144.44,144.38,3.00390783]
[1768610520300,3.2895975,144.44,144.38,3.00390783]
[1768610521511,3.2895975,144.44,144.39,3.00390783]
[1768610523511,3.2895975,144.47,144.4,3.00390783]
[1768610525005,3.2895975,144.47,144.41,9.23870783]
[1768610525210,3.2895975,144.47,144.42,3.00390783]
[1768610527908,3.2895975,144.47,144.42,9.23830783]
[1768610528108,3.2895975,144.47,144.4,3.00390783]
[1768610528502,1.72011507,144.46,144.4,3.00390783]
[1768610528712,5.00971257,144.46,144.4,3.00390783]
[1768610530112,3.2895975,144.46,144.4,3.00390783]
[1768610530814,3.2895975,144.46,144.41,6.2349]
[1768610532616,3.2895975,144.46,144.42,6.2345]
[1768610532917,9.75e-05,144.46,144.42,6.2345]
[1768610536919,3.2895975,144.48,144.42,9.23840783]
[1768610538020,3.2895975,144.48,144.42,3.00390783]
[1768610542829,9.5217975,144.48,144.42,3.00390783]
[1768610546128,3.2895975,144.48,144.42,3.00390783]
[1768610552034,3.2895975,144.48,144.42,9.23850783]
[1768610554937,1.72011507,144.49,144.43,3.19416616]
[1768610555636,4.92183441,144.49,144.43,3.19416616]
[1768610556634,3.20171934,144.51,144.44,3.19416616]
[1768610557838,3.20171934,144.5,144.44,9.42776616]
[1768610559638,3.20171934,144.5,144.45,3.19416616]
[1768610564247,1.71836088,144.52,144.45,3.19416616]
[1768610564248,4.92008022,144.52,144.45,3.19416616]
[1768610564549,4.92008022,144.52,144.46,3.19416616]
[1768610565752,11.15038022,144.52,144.46,3.19416616]
[1768610573150,6.2309,144.51,144.43,19.12352526]
[1768610573350,1.71836088,144.48,144.42,3.00331184]
[1768610573553,4.8537683,144.48,144.42,3.00331184]
[1768610578857,3.13540742,144.47,144.4,3.00331184]
[1768610579157,3.13540742,144.45,144.39,6.2356]
[1768610581561,3.13540742,144.45,144.39,9.23891184]
[1768610583676,1.71836088,144.46,144.41,3.00331184]
[1768610583974,3.13540742,144.48,144.41,3.00331184]
[1768610583975,4.8537683,144.48,144.41,3.00331184]
[1768610584777,4.8537683,144.48,144.42,6.2344]
[1768610589184,4.8537683,144.48,144.41,3.00331184]
[1768610589480,4.8537683,144.46,144.41,3.00331184]
[1768610591985,4.8537683,144.46,144.39,6.2358]
[1768610592183,3.13540742,144.45,144.39,9.23911184]
[1768610600496,3.13540742,144.47,144.41,3.00331184]
[1768610601691,4.99257864,144.49,144.42,3.07424552]
[1768610602893,4.99257864,144.49,144.43,6.2341]
[1768610603798,3.27421776,144.48,144.43,6.2341]
[1768610605603,3.27421776,144.48,144.42,3.07424552]
[1768610613305,3.27421776,144.48,144.41,6.2349]
[1768610613502,3.27421776,144.48,144.41,9.46292535]
[1768610614307,3.27421776,144.48,144.42,3.22802535]
[1768610614509,3.27421776,144.48,144.43,3.22802535]
[1768610614702,6.2317,144.49,144.43,3.22802535]
[1768610617412,9.41518042,144.49,144.43,3.22802535]
[1768610617905,3.18348042,144.49,144.43,3.22802535]
[1768610621914,6.2306,144.52,144.44,3.22802535]
[1768610622113,3.18348042,144.51,144.44,3.22802535]
[1768610622313,4.9018413,144.51,144.44,3.22802535]
[1768610622513,3.18348042,144.5,144.44,3.22802535]
[1768610622914,3.18348042,144.5,144.44,9.46162535]
[1768610624230,3.18348042,144.5,144.45,3.22802535]
[1768610624633,3.18348042,144.5,144.45,9.46112535]
[1768610624833,3.18348042,144.52,144.46,3.22802535]
[1768610625226,144.35237637,144.53,144.46,3.22802535]
[1768610625933,144.35237637,144.53,144.47,6.2323]
[1768610626436,144.35237637,144.53,144.47,9.46032535]
[1768610626938,144.35237637,144.53,144.47,3.22802535]
[1768610631338,144.35237637,144.53,144.47,9.46032535]
[1768610632136,3.15221761,144.55,144.48,9.4397161]
[1768610632335,4.87067742,144.55,144.48,9.4397161]
[1768610633139,3.15221761,144.54,144.48,9.4397161]
[1768610639545,3.15221761,144.54,144.48,3.2078161]
[1768610649658,3.15221761,144.54,144.48,9.4398161]
[1768610650656,7.94745981,144.55,144.49,3.2078161]
[1768610650853,11.09967742,144.55,144.49,3.2078161]
[1768610653856,3.15221761,144.54,144.49,3.2078161]
[1768610673975,3.14243262,144.52,144.46,12.88952526]
[1768610674169,4.86089243,144.51,144.45,3.1252253]
[1768610675273,3.14243262,144.5,144.45,3.1252253]
[1768610675860,3.14243262,144.52,144.45,3.1252253]
[1768610676061,1.71845981,144.53,144.45,3.1252253]
[1768610676770,1.71845981,144.53,144.47,3.1252253]
[1768610677173,4.86089243,144.53,144.47,3.1252253]
[1768610680472,4.86089243,144.53,144.46,6.2326]
[1768610680473,3.14243262,144.52,144.46,6.2326]
[1768610681380,4.86089243,144.51,144.46,6.2326]
[1768610682076,3.14243262,144.5,144.45,3.1252253]
[1768610682267,3.14243262,144.5,144.44,6.2334]
[1768610682473,1.71845981,144.49,144.44,6.2334]
[1768610682976,1.71845981,144.49,144.43,3.1252253]
[1768610684379,4.86089243,144.49,144.43,3.1252253]
[1768610685277,4.86166836,144.48,144.42,220.26151998]
[1768610685583,3.14243262,144.47,144.42,220.26151998]
[1768610686583,1.71923574,144.46,144.41,3.1252253]
[1768610686783,4.86166836,144.46,144.41,3.1252253]
[1768610696089,4.86166836,144.46,144.39,271.0871047]
[1768610696585,3.00040072,144.45,144.39,264.8513047]
[1768610696785,3.00040072,144.45,144.39,3.1313047]
[1768610696988,1.71923574,144.44,144.39,3.1313047]
[1768610700591,3.00040072,144.43,144.37,3.1313047]
[1768610701190,9.23470072,144.43,144.37,3.1313047]
[1768610701495,4.71963646,144.44,144.37,3.1313047]
[1768610701881,9.23460072,144.43,144.37,3.1313047]
[1768610708196,3.00040072,144.43,144.37,3.1313047]
[1768610714400,6.2338,144.44,144.38,3.1313047]
[1768610719497,3.00040072,144.45,144.38,3.1313047]
[1768610721505,6.2332,144.46,144.39,3.00305495]
[1768610721998,20.79,144.52,144.41,3.00305495]
[1768610721999,3.10009287,144.49,144.41,3.00305495]
[1768610722797,3.10009287,144.47,144.41,3.00305495]
[1768610723807,3.10009287,144.46,144.41,3.00305495]
[1768610727006,9.33189287,144.49,144.41,9.23795495]
[1768610727200,9.33189287,144.49,144.41,3.00305495]
[1768610729007,9.33189287,144.49,144.42,3.00305495]
[1768610730608,9.52815977,144.48,144.42,3.00305495]
[1768610732305,9.52815977,144.48,144.39,12.88952526]
[1768610732306,3.29605977,144.46,144.39,3.19111608]
[1768610733810,9.52895977,144.46,144.39,3.19111608]
[1768610736311,96.9327,144.5,144.41,3.19111608]
[1768610736312,9.52835977,144.48,144.41,3.19111608]
[1768610737812,9.52835977,144.48,144.42,3.19111608]
[1768610738207,3.29605977,144.48,144.42,3.19111608]
[1768610743819,3.29605977,144.48,144.42,9.42561608]
[1768610746120,3.29605977,144.48,144.43,9.42511608]
[1768610753026,3.29605977,144.48,144.43,3.19111608]
[1768610760728,3.29605977,144.48,144.43,9.42521608]
[1768610763928,3.29605977,144.48,144.43,3.19111608]
[1768610764520,3.29605977,144.48,144.42,6.2344]
[1768610764715,4.81400431,144.47,144.41,3.1222668]
[1768610765924,4.81400431,144.47,144.41,9.3572668]
[1768610766326,3.09539036,144.46,144.39,22.24749206]
[1768610766524,4.81400431,144.45,144.39,9.3579668]
[1768610767416,3.09539036,144.45,144.4,3.1222668]
[1768610768327,3.09539036,144.45,144.4,9.3576668]
[1768610777034,3.09539036,144.45,144.4,3.1222668]
[1768610782932,3.09539036,144.45,144.41,0.05279061]
[1768610783334,0.04949354,144.44,144.41,0.05279061]
[1768610796945,6.28329354,144.44,144.41,0.05279061]
[1768610803544,0.04949354,144.44,144.41,0.05279061]
[1768610803742,1.557e-05,144.44,144.41,3.27158854]
[1768610819157,1.557e-05,144.44,144.41,0.05279061]
[1768610819354,3.07250054,144.44,144.41,0.05279061]
[1768610820560,3.07250054,144.44,144.39,261.82]
[1768610820754,9.30630054,144.44,144.39,261.82]
[1768610824857,9.30630054,144.44,144.37,3.26665908]
[1768610825063,9.30630054,144.44,144.37,265.08665908]
[1768610826566,9.30630054,144.44,144.38,3.26665908]
[1768610829770,6.2343,144.43,144.38,3.26665908]
[1768610830263,9.30678497,144.43,144.38,3.26665908]
[1768610830471,9.30678497,144.43,144.37,261.82]
[1768610830861,9.30678497,144.43,144.37,265.08665908]
[1768610831061,11.02588812,144.43,144.37,265.08665908]
[1768610832372,6.2347,144.42,144.37,265.08665908]
[1768610832970,6.2347,144.42,144.37,265.10665908]
[1768610835274,6.2347,144.42,144.38,3.26665908]
[1768610835875,6.2347,144.42,144.37,261.84]
[1768610836474,6.2347,144.42,144.37,265.10665908]
[1768610836667,6.2347,144.42,144.38,3.26665908]
[1768610842880,11.2415651,144.44,144.38,3.26665908]
[1768610848384,6.2342,144.43,144.38,3.26665908]
[1768610859694,9.47407157,144.43,144.38,3.26665908]
[1768610862094,9.47407157,144.43,144.37,268.0767]
[1768610862892,9.47407157,144.43,144.37,264.89278702]
[1768610863493,3.23987157,144.42,144.37,264.89278702]
[1768610870196,3.23987157,144.42,144.37,261.84]
[1768610870796,9.47457157,144.42,144.37,261.84]
[1768610871694,3.21128323,144.41,144.37,261.84]
[1768610881510,7.955103,144.42,144.37,261.84]
[1768610881806,7.955103,144.42,144.37,265.00072239]
[1768610882309,6.2347,144.42,144.37,265.00072239]
[1768610883905,4.93168623,144.45,144.38,3.16072239]
[1768610885806,6.2339,144.44,144.38,3.16072239]
[1768610888216,6.2343,144.43,144.38,3.16072239]
[1768610888412,1.720403,144.43,144.38,3.16072239]
[1768610888618,4.93168623,144.43,144.38,3.16072239]
[1768610888916,4.93168623,144.43,144.37,261.84]
[1768610888917,6.235,144.41,144.37,261.84]
[1768610890919,6.235,144.41,144.37,265.00072239]
[1768610891819,6.235,144.41,144.37,3.16072239]
[1768610893824,3.21128323,144.42,144.37,3.16072239]
[1768610896622,9.44588323,144.42,144.37,3.16072239]
[1768610901836,6.2346,144.42,144.37,3.16072239]
[1768610923054,3.09766867,144.45,144.37,3.16072239]
[1768610923245,3.09766867,144.45,144.38,3.0900746]
[1768610924447,3.09766867,144.45,144.38,12.88952526]
[1768610924642,3.09766867,144.45,144.39,3.0900746]
[1768610924848,9.33096867,144.45,144.39,3.0900746]
[1768610925651,3.09766867,144.45,144.4,3.0900746]
[1768610930860,3.09766867,144.45,144.39,6.2358]
[1768610931362,3.09766867,144.45,144.39,9.3258746]
[1768610934254,3.09766867,144.45,144.4,3.04876098]
[1768610942867,1.71977513,144.46,144.41,3.04876098]
[1768610943169,3.17664616,144.47,144.41,3.04876098]
[1768610945364,3.17664616,144.47,144.41,9.28366098]
[1768610945675,1.71977513,144.48,144.42,3.04876098]
[1768610945873,4.89642129,144.48,144.42,9.28326098]
[1768610946568,11.12852129,144.48,144.42,3.04876098]
[1768610949169,3.17664616,144.47,144.42,3.04876098]